bitfinex/quotes_BTCUSD_20250812
["timestamp","ask_amount","ask_price","bid_price","bid_amount"]
[1755036742685,0.18958201,119700.0,119690.0,0.22184326]
[1755036742905,0.62758627,119700.0,119690.0,0.22184326]
[1755036744361,0.18958201,119700.0,119690.0,0.22184326]
[1755036746842,0.62758627,119700.0,119690.0,0.22184326]
[1755036747048,0.62758627,119700.0,119690.0,0.24691026]
[1755036747375,0.18958201,119700.0,119690.0,0.24691026]
[1755036758378,0.62957627,119700.0,119690.0,0.24387026]
[1755036759412,0.19464201,119700.0,119690.0,0.24135026]
[1755036759621,0.63264627,119700.0,119690.0,0.24135026]
[1755036761118,0.62957627,119700.0,119690.0,0.24667026]
[1755036761321,0.19157201,119700.0,119690.0,0.24667026]
[1755036761568,0.18958201,119700.0,119690.0,0.24667026]
[1755036764264,0.18958201,119700.0,119690.0,0.68467452]
[1755036765271,0.18958201,119700.0,119690.0,0.88467452]
[1755036766697,0.18958201,119700.0,119690.0,1.05177285]
[1755036766698,0.00504862,119700.0,119690.0,1.05177285]
[1755036767553,0.17213299,119700.0,119690.0,1.05177285]
[1755036771056,0.17213299,119700.0,119690.0,0.61376859]
[1755036771268,0.17213299,119700.0,119690.0,1.05177285]
[1755036771679,0.17213299,119700.0,119690.0,0.61376859]
[1755036771896,0.17213299,119700.0,119690.0,1.05177285]
[1755036772730,0.00504862,119700.0,119690.0,1.05177285]
[1755036772939,0.17213299,119700.0,119690.0,1.05177285]
[1755036773157,0.17213299,119700.0,119690.0,0.61376859]
[1755036773365,0.17213299,119700.0,119690.0,1.05177285]
[1755036774500,0.17213299,119700.0,119690.0,0.61376859]
[1755036775263,0.17213299,119700.0,119690.0,1.05177285]
[1755036776757,0.17213299,119700.0,119690.0,0.61376859]
[1755036777103,0.17213299,119700.0,119690.0,1.05177285]
[1755036777476,0.17213299,119700.0,119690.0,0.61376859]
[1755036777928,0.00504862,119700.0,119690.0,1.05177285]
[1755036780561,0.00504862,119700.0,119690.0,0.76376859]
[1755036780779,0.00504862,119700.0,119690.0,1.20177285]
[1755036781220,0.00404862,119700.0,119690.0,1.20177285]
[1755036781438,4.862e-05,119700.0,119690.0,1.20277285]
[1755036781623,0.00104862,119700.0,119690.0,1.20477285]
[1755036783830,0.00104862,119700.0,119690.0,0.76676859]
[1755036784082,0.00104862,119700.0,119690.0,1.20477285]
[1755036787701,0.00104862,119700.0,119690.0,0.76676859]
[1755036787908,0.00104862,119700.0,119690.0,1.20477285]
[1755036790476,0.00104862,119700.0,119690.0,0.76676859]
[1755036790682,0.00104862,119700.0,119690.0,1.20477285]
[1755036791965,0.00104862,119700.0,119690.0,1.20472222]
[1755036793143,0.00104862,119700.0,119690.0,1.21322222]
[1755036793520,0.00104862,119700.0,119690.0,1.36342858]
[1755036795289,0.00104862,119700.0,119690.0,1.56382858]
[1755036801926,0.00104862,119700.0,119690.0,1.55102643]
[1755036804061,0.00011528,119700.0,119690.0,1.55102643]
[1755036808640,0.00011528,119700.0,119690.0,0.80804384]
[1755036808641,0.00512528,119700.0,119690.0,0.80804384]
[1755036808861,0.00512528,119700.0,119690.0,0.63983748]
[1755036809071,0.00512528,119700.0,119690.0,0.43983748]
[1755036809288,0.17220965,119700.0,119690.0,0.80693581]
[1755036809472,0.17220965,119700.0,119690.0,1.24494007]
[1755036810057,0.00512528,119700.0,119690.0,1.24494007]
[1755036811861,0.00512528,119700.0,119690.0,1.24421551]
[1755036812072,0.17220965,119700.0,119690.0,1.24421551]
[1755036812484,0.00512528,119700.0,119690.0,1.24421551]
[1755036812995,0.17220965,119700.0,119690.0,1.24421551]
[1755036814339,0.00214528,119700.0,119690.0,1.24937551]
[1755036814542,0.16922965,119700.0,119690.0,1.24937551]
[1755036815183,0.16922965,119700.0,119690.0,1.24631551]
[1755036815601,0.16922965,119700.0,119690.0,1.07921718]
[1755036815808,0.16922965,119700.0,119690.0,1.24631551]
[1755036818374,0.16922965,119700.0,119690.0,0.80831125]
[1755036818762,0.16922965,119700.0,119690.0,1.24631551]
[1755036820366,0.00214528,119700.0,119690.0,1.24631551]
[1755036820572,0.00011528,119700.0,119690.0,1.24937551]
[1755036822967,0.00011528,119700.0,119690.0,1.24369051]
[1755036823854,0.00011528,119700.0,119690.0,1.39389687]
[1755036829534,0.00011528,119700.0,119690.0,1.24369051]
[1755036830188,0.00011528,119700.0,119690.0,1.39371682]
[1755036832229,0.00011528,119700.0,119690.0,1.61871682]
[1755036832434,0.00011528,119700.0,119690.0,1.61855682]
[1755036832643,0.00157546,119720.0,119710.0,0.31707042]
[1755036832863,0.00371546,119720.0,119710.0,1.16963793]
[1755036833503,0.00371546,119720.0,119710.0,0.73163367]
[1755036833703,0.00371546,119720.0,119710.0,1.16963793]
[1755036834049,0.00371546,119720.0,119710.0,0.73163367]
[1755036834266,0.00371546,119720.0,119710.0,1.16963793]
[1755036834887,0.00671546,119720.0,119710.0,1.17063793]
[1755036837334,0.00514,119720.0,119710.0,1.17063793]
[1755036837538,0.00514,119720.0,119710.0,0.73263367]
[1755036837740,0.00514,119720.0,119710.0,1.17063793]
[1755036838360,0.00514,119720.0,119710.0,1.18123793]
[1755036838526,0.00514,119720.0,119710.0,1.18429793]
[1755036840941,0.17219646,119720.0,119710.0,1.01202751]
[1755036841157,0.17433646,119720.0,119710.0,0.24222325]
[1755036841383,0.19178548,119720.0,119710.0,0.56552325]
[1755036846822,0.62978974,119720.0,119710.0,0.56552325]
[1755036849414,0.62978974,119720.0,119710.0,0.23372325]
[1755036849591,0.62978974,119720.0,119710.0,0.36548325]
[1755036850001,0.62978974,119720.0,119710.0,0.21548325]
[1755036851327,1.067794,119720.0,119710.0,0.001]
[1755036851533,1.17523712,119720.0,119710.0,0.13276]
[1755036851766,1.11763269,119720.0,119710.0,0.13276]
[1755036854558,0.67762843,119720.0,119710.0,0.13176]
[1755036855176,0.67862843,119720.0,119710.0,0.13176]
[1755036855714,1.11663269,119720.0,119710.0,0.13176]
[1755036855957,0.67862843,119720.0,119710.0,0.13176]
[1755036856774,0.18453339,119700.0,119690.0,0.2004]
[1755036856974,0.62783765,119700.0,119690.0,0.41496469]
[1755036857226,0.65279634,119700.0,119690.0,0.41496469]
[1755036858159,0.21479208,119700.0,119690.0,0.41496469]
[1755036858361,0.65279634,119700.0,119690.0,0.41496469]
[1755036858906,0.65379634,119700.0,119690.0,0.41696469]
[1755036862448,0.21258208,119700.0,119690.0,0.21656469]
[1755036862658,0.65058634,119700.0,119690.0,0.21656469]
[1755036863263,0.21258208,119700.0,119690.0,0.21656469]
[1755036864528,0.21258208,119700.0,119690.0,0.21853469]
[1755036864739,0.21258208,119700.0,119690.0,0.22156469]
[1755036864940,0.18553339,119700.0,119690.0,0.22156469]
[1755036875376,0.18765339,119700.0,119690.0,0.23480469]
[1755036875577,0.62565765,119700.0,119690.0,0.36652469]
[1755036875983,0.62565765,119700.0,119690.0,0.23480469]
[1755036876186,0.62875765,119700.0,119690.0,0.00208144]
[1755036876381,0.62875765,119700.0,119690.0,0.13380144]
[1755036876581,0.65371634,119700.0,119690.0,0.13380144]
[1755036877473,0.65371634,119700.0,119690.0,0.13280144]
[1755036878057,0.65471634,119700.0,119690.0,0.13280144]
[1755036878468,0.65371634,119700.0,119690.0,0.13180144]
[1755036878667,0.66402658,119700.0,119690.0,0.13180144]
[1755036879861,0.65571634,119700.0,119690.0,0.13180144]
[1755036883480,0.65261634,119700.0,119690.0,0.13180144]
[1755036883684,0.18753339,119700.0,119690.0,0.13689144]
[1755036883900,0.18753339,119700.0,119690.0,0.21961469]
[1755036884114,0.62553765,119700.0,119690.0,0.21961469]
[1755036884973,0.18753339,119700.0,119690.0,0.41961469]
[1755036885184,0.18753339,119700.0,119690.0,0.56961469]
[1755036885578,0.17008437,119700.0,119690.0,0.56961469]
[1755036886033,0.18753339,119700.0,119690.0,0.56961469]
[1755036888295,0.003,119700.0,119690.0,1.17471728]
[1755036888510,0.17008437,119700.0,119690.0,1.00761895]
[1755036888727,0.003,119700.0,119690.0,0.73671302]
[1755036888948,0.003,119700.0,119690.0,1.17471728]
[1755036889760,0.003,119700.0,119690.0,1.19736728]
[1755036890197,0.002,119700.0,119690.0,1.19736728]
[1755036890625,0.16908437,119700.0,119690.0,0.23989469]
[1755036890832,0.16908437,119700.0,119690.0,0.43989469]
[1755036891005,0.16908437,119700.0,119690.0,0.57389469]
[1755036891241,0.16708437,119700.0,119690.0,0.57389469]
[1755036891654,0.16808437,119700.0,119690.0,0.57489469]
[1755036895967,0.16808437,119700.0,119690.0,0.59995669]
[1755036898147,0.001,119700.0,119690.0,1.20505928]
[1755036899459,0.001,119700.0,119690.0,0.76705502]
[1755036899676,0.001,119700.0,119690.0,1.20505928]
[1755036900296,0.001,119700.0,119690.0,0.76705502]
[1755036900544,0.001,119700.0,119690.0,1.20505928]
[1755036902746,0.001,119700.0,119690.0,1.40505928]
[1755036902960,0.001,119700.0,119690.0,0.96705502]
[1755036903196,0.001,119700.0,119690.0,1.40505928]
[1755036903687,0.001,119700.0,119690.0,1.41355928]
[1755036903892,0.001,119700.0,119690.0,1.43721928]
[1755036905813,0.001,119700.0,119690.0,0.99921502]
[1755036905965,0.001,119700.0,119690.0,1.43721928]
[1755036906775,0.001,119700.0,119690.0,0.99921502]
[1755036909865,0.001,119700.0,119690.0,1.02421502]
[1755036911539,0.00010976,119700.0,119690.0,1.02421502]
[1755036913950,0.00010976,119700.0,119690.0,1.00055502]
[1755036917702,0.17855532,119730.0,119720.0,0.55]
[1755036917918,0.18064532,119730.0,119720.0,0.96728325]
[1755036918518,0.18064532,119730.0,119720.0,0.99233825]
[1755036918955,0.00209,119730.0,119720.0,1.17000471]
[1755036919073,0.00209,119730.0,119720.0,1.17313471]
[1755036919276,0.00509,119730.0,119720.0,1.17413471]
[1755036922336,0.003,119730.0,119720.0,1.61221334]
[1755036922544,0.003,119730.0,119720.0,2.05029197]
[1755036922992,0.003,119730.0,119720.0,1.61221334]
[1755036924081,0.16702945,119740.0,119720.0,1.61121334]
[1755036924299,0.16702945,119740.0,119730.0,0.65496188]
[1755036924516,0.17227945,119740.0,119730.0,0.08272325]
[1755036924767,0.17227945,119740.0,119730.0,0.41688325]
[1755036924768,0.67404579,119740.0,119730.0,0.41688325]
[1755036924977,0.23596716,119740.0,119730.0,0.44193725]
[1755036925194,0.23912716,119740.0,119730.0,0.44193725]
[1755036925632,0.24012716,119740.0,119730.0,0.44293725]
[1755036925871,0.24012716,119740.0,119730.0,0.44393725]
[1755036926784,0.17327945,119740.0,119730.0,0.44393725]
[1755036926986,0.17327945,119740.0,119730.0,0.44293725]
[1755036927215,0.17527945,119740.0,119730.0,0.44393725]
[1755036927872,0.17527945,119740.0,119730.0,0.44493725]
[1755036929689,0.6308071,119740.0,119730.0,0.31077725]
[1755036929901,0.6308071,119740.0,119730.0,0.64473725]
[1755036930339,0.6543471,119740.0,119730.0,0.003]
[1755036930547,0.16704251,119730.0,119720.0,0.20036]
[1755036930768,0.16704251,119730.0,119710.0,0.025059]
[1755036930769,0.18451791,119720.0,119710.0,0.025059]
[1755036930989,0.16708437,119700.0,119690.0,0.2]
[1755036931207,0.610453,119700.0,119690.0,0.33408]
[1755036931430,0.610453,119700.0,119690.0,0.359144]
[1755036931867,0.17237437,119700.0,119690.0,0.359144]
[1755036932109,0.610453,119700.0,119690.0,0.44186725]
[1755036932378,0.17237437,119700.0,119690.0,0.44186725]
[1755036932858,0.17437437,119700.0,119690.0,0.44286725]
[1755036934869,0.17114437,119700.0,119690.0,0.44286725]
[1755036940637,0.17437437,119700.0,119690.0,0.44286725]
[1755036941710,0.62990202,119700.0,119690.0,0.24286725]
[1755036942132,0.19182339,119700.0,119690.0,0.24286725]
[1755036946090,0.19182339,119700.0,119690.0,0.44286725]
[1755036946308,0.62990202,119700.0,119690.0,0.44286725]
[1755036947393,0.19182339,119700.0,119690.0,0.44286725]
[1755036951199,0.62990202,119700.0,119690.0,0.30878725]
[1755036951381,0.62990202,119700.0,119690.0,0.08372325]
[1755036951634,0.62990202,119700.0,119690.0,0.21692325]
[1755036951847,0.62990202,119700.0,119690.0,0.24199025]
[1755036952296,0.62990202,119700.0,119690.0,0.159267]
[1755036952976,0.62990202,119700.0,119690.0,0.1342]
[1755036953207,0.19182339,119700.0,119690.0,0.1342]
[1755036953417,0.62990202,119700.0,119690.0,0.1342]
[1755036955636,0.62990202,119700.0,119690.0,0.159269]
[1755036957766,0.19182339,119700.0,119690.0,0.159269]
[1755036957980,0.62667202,119700.0,119690.0,0.159269]
[1755036958403,0.18859339,119700.0,119690.0,0.159269]
[1755036958608,0.18859339,119700.0,119690.0,0.161409]
[1755036958873,0.18653339,119700.0,119690.0,0.164649]
[1755036959299,0.18653339,119700.0,119690.0,0.25588591]
[1755036959548,0.18653339,119700.0,119690.0,0.24737225]
[1755036959979,0.62988202,119700.0,119690.0,0.10879225]
[1755036960116,0.62988202,119700.0,119690.0,0.158869]
[1755036960965,0.19180339,119700.0,119690.0,0.158869]
[1755036961169,0.62988202,119700.0,119690.0,0.001]
[1755036961398,0.62988202,119700.0,119690.0,0.13384]
[1755036961980,0.19180339,119700.0,119690.0,0.13384]
[1755036962195,0.62988202,119700.0,119690.0,0.13384]
[1755036962519,0.62888202,119700.0,119690.0,0.13284]
[1755036962835,0.63388202,119700.0,119690.0,0.13384]
[1755036962998,0.63064202,119700.0,119690.0,0.13384]
[1755036963611,0.63388202,119700.0,119690.0,0.13384]
[1755036964077,0.63064202,119700.0,119690.0,0.13384]
[1755036965425,0.63388202,119700.0,119690.0,0.13384]
[1755036966945,0.69166545,119700.0,119690.0,0.13384]
[1755036967171,0.63388202,119700.0,119690.0,0.13384]
[1755036968283,0.63064202,119700.0,119690.0,0.13384]
[1755036968699,0.19256339,119700.0,119690.0,0.13384]
[1755036968905,0.63064202,119700.0,119690.0,0.13384]
[1755036970128,0.19256339,119700.0,119690.0,0.13384]
[1755036970345,0.63064202,119700.0,119690.0,0.13384]
[1755036970550,0.63064202,119700.0,119690.0,0.1359]
[1755036971385,0.63064202,119700.0,119690.0,0.13384]
[1755036971930,0.19256339,119700.0,119690.0,0.13902]
[1755036972134,0.19053339,119700.0,119690.0,0.13902]
[1755036974583,0.19053339,119700.0,119690.0,0.22174325]
[1755036974795,0.19053339,119700.0,119690.0,0.42174325]
[1755036975852,0.19053339,119700.0,119690.0,0.44680925]
[1755036976067,0.19256339,119700.0,119690.0,0.44680925]
[1755036977343,0.19256339,119700.0,119690.0,0.42174325]
[1755036977546,0.19053339,119700.0,119690.0,0.42174325]
[1755036979981,0.19053339,119700.0,119690.0,0.85982188]
[1755036982125,0.19053339,119700.0,119690.0,0.72550188]
[1755036982544,0.17308437,119700.0,119690.0,0.72550188]
[1755036982897,0.17308437,119700.0,119690.0,0.75056488]
[1755036983316,0.17308437,119700.0,119690.0,0.88296488]
[1755036983668,0.17208437,119700.0,119690.0,0.88296488]
[1755036985138,0.16708437,119700.0,119690.0,0.88296488]
[1755036985577,0.16908437,119700.0,119690.0,0.88396488]
[1755036987121,0.16908437,119700.0,119690.0,0.44588625]
[1755036992101,0.18768339,119700.0,119690.0,0.44588625]
[1755036992245,0.19089339,119700.0,119690.0,0.41604325]
[1755036993278,0.18768339,119700.0,119690.0,0.41604325]
[1755036993627,0.18768339,119700.0,119690.0,0.41808325]
[1755036993831,0.18653339,119700.0,119690.0,0.42131325]
[1755036995323,0.18770339,119700.0,119690.0,0.42131325]
[1755036995544,0.18653339,119700.0,119690.0,0.42131325]
[1755036996834,0.18770339,119700.0,119690.0,0.42131325]
[1755036997020,0.18770339,119700.0,119690.0,0.41808325]
[1755036997222,0.19089339,119700.0,119690.0,0.28372325]
[1755036997519,0.19089339,119700.0,119690.0,0.41592325]
[1755036998230,0.18770339,119700.0,119690.0,0.21592325]
[1755036998432,0.18770339,119700.0,119690.0,0.41592325]
[1755036999850,0.18770339,119700.0,119690.0,0.42119325]
[1755037000291,0.18653339,119700.0,119690.0,0.42119325]
[1755037003408,0.18653339,119700.0,119690.0,0.44625825]
[1755037003599,0.18653339,119700.0,119690.0,0.42119325]
[1755037004682,0.18653339,119700.0,119690.0,0.44625925]
[1755037004886,0.18653339,119700.0,119690.0,0.42119325]
[1755037005794,0.18653339,119700.0,119690.0,0.44625925]
[1755037006000,0.18653339,119700.0,119690.0,0.43625925]
[1755037007194,0.18653339,119700.0,119690.0,0.41119325]
[1755037007559,0.18653339,119700.0,119690.0,0.43625925]
[1755037007971,0.18653339,119700.0,119690.0,0.41119325]
[1755037008477,0.18653339,119700.0,119690.0,0.43625925]
[1755037008657,0.18653339,119700.0,119690.0,0.41119325]
[1755037012837,0.19191339,119700.0,119690.0,0.40592325]
[1755037013303,0.19191339,119700.0,119690.0,0.20588325]
[1755037013304,0.62999202,119700.0,119690.0,0.20588325]
[1755037013457,0.62999202,119700.0,119690.0,0.13316]
[1755037017488,0.19191339,119700.0,119690.0,0.13316]
[1755037018893,0.18868339,119700.0,119690.0,0.13316]
[1755037019759,0.18653339,119700.0,119690.0,0.28832]
[1755037019967,0.18653339,119700.0,119690.0,1.00912188]
[1755037021148,0.18653339,119700.0,119690.0,0.57104325]
[1755037021644,0.18865339,119700.0,119690.0,0.56799325]
[1755037021805,0.18865339,119700.0,119690.0,0.56588325]
[1755037022262,0.18865339,119700.0,119690.0,0.56799325]
[1755037022466,0.18653339,119700.0,119690.0,0.57104325]
[1755037023563,0.62673202,119700.0,119690.0,0.28372325]
[1755037023776,0.62986202,119700.0,119690.0,0.41588325]
[1755037023989,0.19178339,119700.0,119690.0,0.41588325]
[1755037024410,0.18865339,119700.0,119690.0,0.41588325]
[1755037024605,0.18865339,119700.0,119690.0,0.41799325]
[1755037024821,0.18653339,119700.0,119690.0,0.42104325]
[1755037027511,0.18865339,119700.0,119690.0,0.42104325]
[1755037028988,0.18865339,119700.0,119690.0,0.41799325]
[1755037029193,0.18865339,119700.0,119690.0,0.41588325]
[1755037030234,0.62673202,119700.0,119690.0,0.41588325]
[1755037030975,0.18865339,119700.0,119690.0,0.41588325]
[1755037033355,0.62673202,119700.0,119690.0,0.41588325]
[1755037034670,0.18865339,119700.0,119690.0,0.41588325]
[1755037034915,0.18653339,119700.0,119690.0,0.42104325]
[1755037036029,0.18865339,119700.0,119690.0,0.42104325]
[1755037038867,0.18865339,119700.0,119690.0,0.44611025]
[1755037039286,0.18653339,119700.0,119690.0,0.44611025]
[1755037041980,0.18770339,119700.0,119690.0,0.44611025]
[1755037045583,0.62578202,119700.0,119690.0,0.44611025]
[1755037045791,0.62578202,119700.0,119690.0,0.44306025]
[1755037046001,0.62578202,119700.0,119690.0,0.158227]
[1755037046215,0.7084915,119700.0,119690.0,0.13316]
[1755037046625,0.62889202,119700.0,119690.0,0.13316]
[1755037047463,0.62689202,119700.0,119690.0,0.13216]
[1755037047669,0.63189202,119700.0,119690.0,0.13216]
[1755037048713,0.65349763,119700.0,119690.0,0.13216]
[1755037048915,0.65449763,119700.0,119690.0,0.13216]
[1755037049337,0.16825833,119690.0,119680.0,0.02515044]
[1755037049554,0.16825833,119690.0,119680.0,0.02726044]
[1755037049767,0.17036833,119690.0,119680.0,0.02726044]
[1755037050623,0.17036833,119690.0,119680.0,0.15934044]
[1755037050981,0.17036833,119690.0,119680.0,0.16240044]
[1755037051441,0.17336833,119690.0,119680.0,0.16240044]
[1755037051944,0.17436833,119690.0,119680.0,0.16240044]
[1755037056189,0.61244696,119690.0,119680.0,0.02515044]
[1755037056401,0.63304598,119690.0,119680.0,0.13216144]
[1755037057888,0.63304598,119690.0,119680.0,1e-08]
[1755037057889,0.71553041,119690.0,119680.0,1e-08]
[1755037058094,0.18456131,119680.0,119670.0,0.0002]
[1755037058296,0.62474994,119680.0,119670.0,0.00068815]
[1755037058480,0.64950555,119680.0,119670.0,0.00068815]
[1755037059391,0.64950555,119680.0,119670.0,0.13272815]
[1755037060002,0.65050555,119680.0,119670.0,0.13272815]
[1755037060856,0.65450555,119680.0,119670.0,0.13272815]
[1755037062494,0.67976831,119680.0,119670.0,0.13272815]
[1755037063626,0.67976831,119680.0,119670.0,0.00068815]
[1755037063839,0.67976831,119680.0,119670.0,0.13272815]
[1755037068295,0.24168968,119680.0,119670.0,0.13272815]
[1755037068526,0.67976831,119680.0,119670.0,0.13272815]
[1755037069887,0.19167131,119680.0,119670.0,0.13789815]
[1755037070103,0.18956131,119680.0,119670.0,0.13789815]
[1755037070678,0.18956131,119680.0,119670.0,0.16296915]
[1755037073814,0.18956131,119680.0,119670.0,1.2358601]
[1755037074022,0.18956131,119680.0,119670.0,1.23377103]
[1755037074634,0.17211229,119680.0,119670.0,1.23377103]
[1755037075455,0.17211229,119680.0,119670.0,0.7956924]
[1755037075660,0.17211229,119680.0,119670.0,1.23377103]
[1755037077055,0.17211229,119680.0,119670.0,0.7956924]
[1755037077285,0.17211229,119680.0,119670.0,1.23377103]
[1755037077629,0.17211229,119680.0,119670.0,0.7956924]
[1755037077835,0.17211229,119680.0,119670.0,1.23377103]
[1755037082743,0.17176002,119680.0,119670.0,1.23377103]
[1755037082951,0.17176002,119680.0,119670.0,1.40089729]
[1755037083779,0.005,119680.0,119670.0,1.40089729]
[1755037084421,0.17211229,119680.0,119670.0,1.40089729]
[1755037084711,0.17111229,119680.0,119670.0,1.40089729]
[1755037085087,0.16711229,119680.0,119670.0,1.40189729]
[1755037085302,0.16911229,119680.0,119670.0,1.40189729]
[1755037085667,0.002,119680.0,119670.0,1.40189729]
[1755037086077,0.16911229,119680.0,119670.0,1.40189729]
[1755037086703,0.002,119680.0,119670.0,1.40189729]
[1755037086905,0.16911229,119680.0,119670.0,1.40189729]
[1755037088647,0.002,119680.0,119670.0,1.40189729]
[1755037089601,0.16911229,119680.0,119670.0,1.40189729]
[1755037090232,0.16911229,119680.0,119670.0,0.7966924]
[1755037090453,0.16911229,119680.0,119670.0,1.40189729]
[1755037091383,0.16911229,119680.0,119670.0,1.25939729]
[1755037091576,0.16911229,119680.0,119670.0,1.26154729]
[1755037092619,0.16911229,119680.0,119670.0,0.95534866]
[1755037092818,0.16911229,119680.0,119670.0,1.39342729]
[1755037093554,0.16911229,119680.0,119670.0,1.22926103]
[1755037093678,0.16911229,119680.0,119670.0,1.39638729]
[1755037094101,0.16911229,119680.0,119670.0,1.22926103]
[1755037098318,0.17432229,119680.0,119670.0,1.22411103]
[1755037100098,0.17432229,119680.0,119670.0,1.22626103]
[1755037100852,0.16911229,119680.0,119670.0,1.22626103]
[1755037103618,0.16911229,119680.0,119670.0,1.39338729]
[1755037103832,0.16911229,119680.0,119670.0,1.39634729]
[1755037104038,0.16911229,119680.0,119670.0,1.22922103]
[1755037104891,0.16911229,119680.0,119670.0,1.39634729]
[1755037105077,0.16911229,119680.0,119670.0,1.22922103]
[1755037105218,0.16911229,119680.0,119670.0,1.22626103]
[1755037105418,0.17109229,119680.0,119670.0,0.7860324]
[1755037105648,0.17432229,119680.0,119670.0,1.22626103]
[1755037106087,0.17432229,119680.0,119670.0,0.7881824]
[1755037106264,0.17432229,119680.0,119670.0,1.22411103]
[1755037106670,0.17432229,119680.0,119670.0,0.7881824]
[1755037106895,0.17432229,119680.0,119670.0,1.22626103]
[1755037107849,0.17109229,119680.0,119670.0,1.22626103]
[1755037108057,0.16911229,119680.0,119670.0,1.22626103]
[1755037109185,0.17118229,119680.0,119670.0,0.7881824]
[1755037109399,0.17438229,119680.0,119670.0,1.22626103]
[1755037109825,0.17438229,119680.0,119670.0,0.7881824]
[1755037110026,0.17438229,119680.0,119670.0,1.22626103]
[1755037110884,0.17438229,119680.0,119670.0,0.7881824]
[1755037111122,0.17438229,119680.0,119670.0,1.22626103]
[1755037111330,0.17438229,119680.0,119670.0,1.22411103]
[1755037112892,0.17438229,119680.0,119670.0,1.22616103]
[1755037114330,0.16911229,119680.0,119670.0,1.22616103]
[1755037114783,0.16911229,119680.0,119670.0,1.39328729]
[1755037114989,0.16911229,119680.0,119670.0,1.39631729]
[1755037116023,0.16911229,119680.0,119670.0,0.95823866]
[1755037116240,0.17438229,119680.0,119670.0,0.7860324]
[1755037116448,0.17438229,119680.0,119670.0,1.22411103]
[1755037117317,0.17438229,119680.0,119670.0,0.7860324]
[1755037117549,0.17438229,119680.0,119670.0,1.22411103]
[1755037118442,0.17438229,119680.0,119670.0,1.22616103]
[1755037118656,0.17438229,119680.0,119670.0,1.22411103]
[1755037119083,0.17438229,119680.0,119670.0,0.5860324]
[1755037119933,0.17438229,119680.0,119670.0,0.3860324]
[1755037120143,0.17438229,119680.0,119670.0,0.5860324]
[1755037120566,0.17438229,119680.0,119670.0,0.3860324]
[1755037120777,0.17438229,119680.0,119670.0,0.5860324]
[1755037120992,0.17438229,119680.0,119670.0,0.4541924]
[1755037121217,0.17438229,119680.0,119670.0,0.56540325]
[1755037129157,0.19183131,119680.0,119670.0,0.76540325]
[1755037131971,0.19183131,119680.0,119670.0,0.76532325]
[1755037136387,0.19183131,119680.0,119670.0,0.76528325]
[1755037140382,0.62990994,119680.0,119670.0,0.001]
[1755037140594,0.62990994,119680.0,119670.0,0.13256]
[1755037141277,0.62990994,119680.0,119670.0,0.13156]
[1755037141510,0.19283131,119680.0,119670.0,0.13156]
[1755037141733,0.63090994,119680.0,119670.0,0.13156]
[1755037142151,0.63930658,119680.0,119670.0,0.13156]
[1755037142357,0.63730658,119680.0,119670.0,0.13156]
[1755037142562,0.20422795,119680.0,119670.0,0.13256]
[1755037142775,0.19583131,119680.0,119670.0,0.13256]
[1755037148396,0.63390994,119680.0,119670.0,0.13256]
[1755037148738,0.19583131,119680.0,119670.0,0.13256]
[1755037154256,0.19583131,119680.0,119670.0,0.13248]
[1755037156865,0.19583131,119680.0,119670.0,0.001]
[1755037157096,0.19583131,119680.0,119670.0,0.13244]
[1755037157097,0.63390994,119680.0,119670.0,0.13244]
[1755037158672,0.18458925,119660.0,119650.0,0.26352649]
[1755037158892,0.62807788,119660.0,119650.0,0.19624974]
[1755037159106,0.18999925,119660.0,119650.0,0.32783624]
[1755037159767,0.62807788,119660.0,119650.0,0.24511299]
[1755037159984,0.62807788,119660.0,119650.0,0.24611299]
[1755037160187,0.62807788,119660.0,119650.0,0.24711299]
[1755037160188,0.63007788,119660.0,119650.0,0.24711299]
[1755037160620,0.20052992,119660.0,119650.0,0.24611299]
[1755037160873,0.63960855,119660.0,119650.0,0.24611299]
[1755037161336,0.63960855,119660.0,119650.0,0.24607299]
[1755037162745,0.63760855,119660.0,119650.0,0.24507299]
[1755037163246,0.64260855,119660.0,119650.0,0.24507299]
[1755037164825,0.63407788,119660.0,119650.0,0.24507299]
[1755037165709,0.19599925,119660.0,119650.0,0.24507299]
[1755037168813,0.63407788,119660.0,119650.0,0.24503299]
[1755037174982,0.19599925,119660.0,119650.0,0.24503299]
[1755037175263,0.63407788,119660.0,119650.0,0.24503299]
[1755037175671,0.19599925,119660.0,119650.0,0.24503299]
[1755037175870,0.19599925,119660.0,119650.0,0.24698299]
[1755037176535,0.63407788,119660.0,119650.0,0.24495299]
[1755037176743,0.63407788,119660.0,119650.0,0.11367299]
[1755037176975,0.65568349,119660.0,119650.0,0.1844174]
[1755037180019,0.69903118,119660.0,119650.0,0.1844174]
[1755037180645,0.21760486,119660.0,119650.0,0.1844174]
[1755037180816,0.65568349,119660.0,119650.0,0.1844174]
[1755037188900,0.65568349,119660.0,119650.0,0.0531374]
[1755037189164,0.65568349,119660.0,119650.0,0.1843774]
[1755037190526,0.65568349,119660.0,119620.0,0.0002]
[1755037190527,0.16718214,119630.0,119620.0,0.0002]
[1755037190741,0.60733077,119630.0,119620.0,0.13148862]
[1755037190944,0.62477979,119630.0,119620.0,0.13148862]
[1755037191158,0.62777979,119630.0,119620.0,0.13148862]
[1755037191818,0.18970116,119630.0,119620.0,0.13148862]
[1755037192239,0.62777979,119630.0,119620.0,0.13148862]
[1755037192447,0.63277979,119630.0,119620.0,0.13148862]
[1755037192865,0.63377979,119630.0,119620.0,0.13148862]
[1755037193498,0.71626422,119630.0,119620.0,1e-08]
[1755037193711,0.63377979,119630.0,119620.0,0.13124001]
[1755037194399,0.63377979,119630.0,119620.0,1e-08]
[1755037194619,0.63377979,119630.0,119620.0,0.13124001]
[1755037195264,0.19570116,119630.0,119620.0,0.13124001]
[1755037195475,0.63377979,119630.0,119620.0,0.13124001]
[1755037198309,0.37234917,119630.0,119620.0,0.13124001]
[1755037198541,0.66109566,119630.0,119620.0,0.13124001]
[1755037202967,0.66109566,119630.0,119620.0,0.13336001]
[1755037203175,0.63377979,119630.0,119620.0,0.13336001]
[1755037203638,0.19063116,119630.0,119620.0,0.13336001]
[1755037203849,0.17318214,119630.0,119620.0,0.13634001]
[1755037204282,0.19063116,119630.0,119620.0,0.13634001]
[1755037204723,0.17318214,119630.0,119620.0,0.37115321]
[1755037204933,0.17318214,119630.0,119620.0,0.36906326]
[1755037205142,0.19063116,119630.0,119620.0,0.36906326]
[1755037205844,0.19063116,119630.0,119620.0,0.80714189]
[1755037206484,0.17318214,119630.0,119620.0,0.80714189]
[1755037206698,0.17318214,119630.0,119620.0,0.39204326]
[1755037206928,0.17318214,119630.0,119620.0,0.85519989]
[1755037207153,0.17318214,119630.0,119620.0,1.02239601]
[1755037207375,0.006,119630.0,119620.0,1.02239601]
[1755037208505,0.006,119630.0,119620.0,1.17239601]
[1755037208709,0.005,119630.0,119620.0,1.17239601]
[1755037209136,0.1671689,119640.0,119630.0,0.4]
[1755037209389,0.1671689,119640.0,119630.0,0.92292188]